bitfinex/quotes_SOLUSD_20220227
["timestamp","ask_amount","ask_price","bid_price","bid_amount"]
[1645966825472,16.3446,91.87,91.805,44.75922153]
[1645966825680,24.4209,91.869,91.805,44.75922153]
[1645966826073,24.4209,91.869,91.804,37.42162]
[1645966827070,24.4209,91.869,91.805,36.40805143]
[1645966827371,6.0,91.868,91.805,36.40805143]
[1645966828292,6.0,91.868,91.804,37.42162]
[1645966830992,6.0,91.868,91.805,108.9]
[1645966831194,22.9403,91.885,91.805,108.9]
[1645966831793,2.74678921,91.886,91.805,108.9]
[1645966831993,16.3381,91.91,91.806,3.36432414]
[1645966832193,16.3381,91.91,91.807,108.9]
[1645966832393,16.3381,91.91,91.806,31.36275431]
[1645966832394,1.71685317,91.909,91.806,43.1959087]
[1645966832595,1.71685317,91.909,91.807,108.9]
[1645966832794,1.83214542,91.925,91.807,108.9]
[1645966832993,4.354,91.924,91.806,42.9459087]
[1645966833195,16.34,91.9,91.804,37.42162]
[1645966833397,24.59247959,91.899,91.804,37.42162]
[1645966833594,1.60148008,91.898,91.804,37.42162]
[1645966834895,6.0,91.897,91.804,37.42162]
[1645966835297,8.74678921,91.897,91.804,37.42162]
[1645966835497,16.3417,91.89,91.804,37.42162]
[1645966835901,4.27684499,91.889,91.804,37.42162]
[1645966836101,1.64721721,91.887,91.804,37.42162]
[1645966836404,110.54721721,91.887,91.804,21.41182]
[1645966836601,108.9,91.885,91.804,21.41182]
[1645966836808,16.3449,91.87,91.804,21.41182]
[1645966837100,1.40680558,91.868,91.782,23.8587]
[1645966837299,4.355,91.867,91.782,23.8587]
[1645966837502,1.40680558,91.868,91.782,23.8587]
[1645966837701,2.74678921,91.867,91.782,23.8587]
[1645966837900,4.355,91.866,91.786,43.25247096]
[1645966838101,16.3493,91.86,91.786,43.25247096]
[1645966838301,16.3493,91.86,91.8,45.55939108]
[1645966838702,2.74678921,91.867,91.8,45.55939108]
[1645966838904,6.0,91.866,91.802,108.9]
[1645966839103,24.9731,91.869,91.802,108.9]
[1645966839302,6.0,91.868,91.802,108.9]
[1645966839502,6.0,91.868,91.803,22.6778]
[1645966840105,6.0,91.868,91.803,21.6778]
[1645966845008,2.74678921,91.867,91.744,2.37832458]
[1645966845411,2.74678921,91.867,91.765,16.6866]
[1645966845610,4.355,91.866,91.765,16.6866]
[1645966845811,4.355,91.866,91.772,41.05642125]
[1645966846011,16.3467,91.86,91.772,41.05642125]
[1645966846210,6.14190526,91.859,91.772,41.05642125]
[1645966846413,7.10178921,91.859,91.772,41.05642125]
[1645966846813,10.56366358,91.858,91.772,41.05642125]
[1645966847112,5.90335956,91.857,91.772,41.05642125]
[1645966847511,16.3514,91.85,91.772,41.05642125]
[1645966847713,16.3514,91.85,91.765,16.6866]
[1645966848313,1.49303713,91.849,91.765,16.6866]
[1645966848613,1.85940318,91.855,91.765,16.6866]
[1645966848813,1.85940318,91.855,91.769,40.04421149]
[1645966849312,4.355,91.854,91.77,23.2195]
[1645966849513,16.3512,91.84,91.77,23.2195]
[1645966850913,1.41587362,91.837,91.72,16.3536]
[1645966851113,4.358,91.836,91.729,28.5513]
[1645966851314,1.76688026,91.835,91.729,28.5513]
[1645966851515,4.358,91.834,91.729,28.5513]
[1645966851817,4.358,91.834,91.73,36.96154058]
[1645966852013,1.73225289,91.829,91.731,6.0]
[1645966852214,4.358,91.828,91.731,6.0]
[1645966852417,6.0,91.827,91.731,6.0]
[1645966852715,1.50609366,91.825,91.731,6.0]
[1645966852915,6.0,91.824,91.731,6.0]
[1645966855522,4.358,91.823,91.731,6.0]
[1645966855720,4.358,91.823,91.729,22.5513]
[1645966855920,108.9,91.821,91.729,22.5513]
[1645966856120,108.9,91.819,91.729,22.5513]
[1645966856420,108.9,91.817,91.729,22.5513]
[1645966856621,1.44611463,91.816,91.729,22.5513]
[1645966857419,110.61611986,91.814,91.729,22.5513]
[1645966857621,1.45868555,91.813,91.729,22.5513]
[1645966857826,4.358,91.812,91.729,22.5513]
[1645966858826,4.358,91.812,91.73,40.1936998]
[1645966859027,1.45868555,91.813,91.73,40.1936998]
[1645966859828,4.358,91.812,91.73,40.1936998]
[1645966860426,1.45868555,91.813,91.73,40.1936998]
[1645966860631,4.358,91.812,91.73,40.1936998]
[1645966861427,1.45868555,91.813,91.73,40.1936998]
[1645966861629,2.74678921,91.811,91.73,40.1936998]
[1645966861851,4.358,91.81,91.73,40.1936998]
[1645966862046,4.358,91.81,91.729,22.5513]
[1645966862249,2.74678921,91.809,91.729,22.5513]
[1645966862448,4.358,91.808,91.729,22.5513]
[1645966862850,2.74678921,91.809,91.729,22.5513]
[1645966862851,6.0,91.807,91.729,22.5513]
[1645966863049,2.74678921,91.809,91.73,39.93415613]
[1645966863251,10.358,91.808,91.73,39.93415613]
[1645966863753,10.358,91.808,91.729,22.5513]
[1645966864352,108.9,91.807,91.729,22.5513]
[1645966864555,1.38447715,91.806,91.721,23.8164]
[1645966864758,1.38447715,91.806,91.694,23.9242]
[1645966864759,113.259,91.805,91.694,23.9242]
[1645966864952,1.66914727,91.804,91.694,23.9242]
[1645966865152,4.359,91.803,91.694,23.9242]
[1645966865352,162.18255607,91.803,91.694,23.9242]
[1645966865552,110.41568279,91.801,91.694,23.9242]
[1645966865752,16.3636,91.79,91.695,38.67435247]
[1645966865952,1.50939428,91.788,91.695,38.67435247]
[1645966866152,4.36,91.787,91.695,38.67435247]
[1645966866353,1.41336829,91.785,91.695,38.67435247]
[1645966866555,4.36,91.784,91.695,38.67435247]
[1645966866954,2.74678921,91.783,91.695,38.67435247]
[1645966867155,4.36,91.782,91.695,38.67435247]
[1645966867359,4.36,91.782,91.694,23.9242]
[1645966867554,1.63507891,91.778,91.694,23.9242]
[1645966867757,108.9,91.779,91.694,23.9242]
[1645966867758,1.64662256,91.776,91.694,23.9242]
[1645966868055,4.36,91.775,91.694,23.9242]
[1645966868256,1.6422312,91.772,91.682,23.1698]
[1645966868456,1.6422312,91.772,91.641,2.87937785]
[1645966868457,16.3653,91.77,91.661,23.5704]
[1645966868658,1.70784065,91.768,91.661,23.5704]
[1645966869057,108.9,91.766,91.661,23.5704]
[1645966869262,4.361,91.765,91.661,23.5704]
[1645966869464,1.59899104,91.764,91.661,23.5704]
[1645966869667,54.5756,91.76,91.661,23.5704]
[1645966869867,1.86006834,91.758,91.661,23.5704]
[1645966870061,4.361,91.757,91.661,23.5704]
[1645966870563,1.68474294,91.756,91.661,23.5704]
[1645966870761,4.361,91.755,91.661,23.5704]
[1645966871561,113.50998212,91.754,91.661,23.5704]
[1645966871761,1.68928858,91.753,91.661,23.5704]
[1645966871961,1.65683615,91.75,91.661,23.5704]
[1645966872563,108.9,91.748,91.661,23.5704]
[1645966872764,108.9,91.746,91.661,23.5704]
[1645966872964,108.9,91.744,91.661,23.5704]
[1645966873166,108.9,91.742,91.661,23.5704]
[1645966873364,108.9,91.74,91.661,23.5704]
[1645966873565,114.76352905,91.739,91.661,23.5704]
[1645966873765,1.36100198,91.738,91.661,23.5704]
[1645966873969,4.362,91.737,91.661,23.5704]
[1645966874367,4.362,91.737,91.62,16.3712]
[1645966874574,1.72359986,91.735,91.637,22.773]
[1645966874769,4.362,91.734,91.637,22.773]
[1645966874975,108.9,91.733,91.637,22.773]
[1645966875174,1.6748537,91.73,91.637,22.773]
[1645966875369,4.362,91.729,91.637,22.773]
[1645966875770,111.64678921,91.728,91.637,22.773]
[1645966875969,1.60705486,91.727,91.637,22.773]
[1645966876171,30.31276556,91.727,91.637,22.773]
[1645966876372,1.78325522,91.725,91.637,22.773]
[1645966876774,2.74678921,91.724,91.637,22.773]
[1645966877374,2.74678921,91.724,91.638,32.94050038]
[1645966877774,108.9,91.723,91.638,32.94050038]
[1645966877974,108.9,91.721,91.637,22.773]
[1645966878175,108.9,91.719,91.637,22.773]
[1645966878376,6.17260984,91.718,91.637,22.773]
[1645966878779,2.74678921,91.717,91.637,22.773]
[1645966878982,6.0,91.716,91.638,33.47574592]
[1645966879377,2.74678921,91.715,91.637,22.773]
[1645966879577,4.363,91.714,91.637,22.773]
[1645966879783,28.7057107,91.715,91.637,22.773]
[1645966879978,2.74678921,91.713,91.637,22.773]
[1645966880380,28.7057107,91.713,91.637,22.773]
[1645966880799,7.10978921,91.712,91.637,22.773]
[1645966881306,2.74678921,91.711,91.637,22.773]
[1645966882201,4.363,91.71,91.637,22.773]
[1645966882603,2.74678921,91.709,91.637,22.773]
[1645966882903,1.60488657,91.708,91.637,22.773]
[1645966883102,6.0,91.707,91.637,22.773]
[1645966883303,4.363,91.706,91.637,22.773]
[1645966883702,7.10978921,91.706,91.637,22.773]
[1645966883902,2.74678921,91.705,91.637,22.773]
[1645966884103,4.363,91.704,91.637,22.773]
[1645966884504,7.10978921,91.704,91.637,22.773]
[1645966886909,2.74678921,91.704,91.637,22.773]
[1645966888113,24.0617,91.708,91.638,2.25132754]
[1645966889612,2.74678921,91.739,91.638,2.25132754]
[1645966889813,4.363,91.736,91.639,108.9]
[1645966890013,4.363,91.736,91.64,2.63020475]
[1645966890213,2.74678921,91.739,91.64,2.63020475]
[1645966890415,2.74678921,91.739,91.641,111.89678921]
[1645966890624,115.05623908,91.808,91.641,111.89678921]
[1645966890625,4.362,91.769,91.642,2.58286014]
[1645966890815,16.3618,91.78,91.644,108.9]
[1645966891022,16.3618,91.78,91.646,108.9]
[1645966891216,16.3618,91.78,91.645,9.0361015]
[1645966891217,16.3618,91.78,91.648,108.9]
[1645966891416,114.62204017,91.779,91.65,16.3671]
[1645966891618,108.9,91.777,91.65,16.3671]
[1645966891815,5.89258059,91.776,91.649,2.26383821]
[1645966892018,1.53158059,91.776,91.649,2.26383821]
[1645966892216,26.50618921,91.775,91.649,2.26383821]
[1645966892415,26.50618921,91.775,91.651,108.9]
[1645966892614,2.74678921,91.774,91.652,2.74195276]
[1645966892814,54.5597,91.77,91.661,108.9]
[1645966893014,54.5597,91.77,91.663,108.9]
[1645966893217,54.5597,91.77,91.664,2.75103704]
[1645966893415,54.5597,91.77,91.666,2.59522021]
[1645966893616,54.5597,91.77,91.667,0.25]
[1645966894121,2.74678921,91.769,91.667,0.25]
[1645966894316,108.9,91.759,91.666,2.59522021]
[1645966894515,1.72153246,91.758,91.641,49.79599154]
[1645966894717,1.42141464,91.756,91.641,49.79599154]
[1645966894917,4.362,91.755,91.641,49.79599154]
[1645966895117,108.9,91.754,91.641,47.5373]
[1645966895317,1.4739562,91.751,91.642,33.97277295]
[1645966895519,4.362,91.75,91.642,33.97277295]
[1645966895720,1.77063096,91.748,91.642,33.97277295]
[1645966895918,4.362,91.747,91.643,2.36336021]
[1645966896118,2.74678921,91.747,91.643,2.36336021]
[1645966896318,7.10878921,91.746,91.643,2.36336021]
[1645966896519,2.74678921,91.746,91.643,2.36336021]
[1645966896717,2.74678921,91.745,91.643,2.36336021]
[1645966897119,28.7789,91.744,91.643,2.36336021]
[1645966897519,24.4169,91.744,91.643,2.36336021]
[1645966897721,7.10878921,91.743,91.643,2.36336021]
[1645966898121,2.74678921,91.742,91.643,2.36336021]
[1645966898523,4.362,91.741,91.643,2.36336021]
[1645966898723,4.362,91.741,91.641,47.5373]
[1645966898925,2.74678921,91.74,91.641,47.5373]
[1645966899124,113.262,91.739,91.641,47.5373]
[1645966899346,1.72855054,91.738,91.641,47.5373]
[1645966899527,4.362,91.737,91.641,47.5373]
[1645966899929,7.10878921,91.737,91.641,47.5373]
[1645966900128,2.74678921,91.737,91.641,47.5373]
[1645966900328,2.74678921,91.736,91.641,47.5373]
[1645966900533,4.362,91.735,91.641,47.5373]
[1645966900932,2.74678921,91.734,91.641,47.5373]
[1645966901129,4.362,91.733,91.641,47.5373]
[1645966901330,24.6799,91.732,91.641,47.5373]
[1645966901535,4.362,91.731,91.641,47.5373]
[1645966901733,7.10878921,91.731,91.642,40.87995967]
[1645966902230,2.74678921,91.73,91.642,40.87995967]
[1645966902431,6.0,91.729,91.642,40.87995967]
[1645966902832,2.74678921,91.728,91.642,40.87995967]
[1645966903934,4.362,91.737,91.644,2.53942748]
[1645966904139,2.74678921,91.739,91.644,2.53942748]
[1645966904534,7.10878921,91.739,91.644,2.53942748]
[1645966904936,2.74678921,91.739,91.644,2.53942748]
[1645966905735,2.74678921,91.739,91.645,0.25]
[1645966906237,6.0,91.738,91.645,0.25]
[1645966907058,57.31518921,91.75,91.645,0.25]
[1645966907354,6.0,91.739,91.645,0.25]
[1645966911166,6.0,91.739,91.644,2.53942748]
[1645966911559,6.0,91.739,91.651,108.9]
[1645966911759,6.0,91.739,91.652,2.37785542]
[1645966912159,24.0774,91.752,91.654,108.9]
[1645966912360,24.0774,91.752,91.655,2.66966034]
[1645966912559,24.0774,91.752,91.657,108.9]
[1645966912762,24.0774,91.752,91.658,2.59501205]
[1645966912963,16.3651,91.76,91.658,2.59501205]
[1645966913161,16.3651,91.76,91.658,5.34180126]
[1645966913363,16.3651,91.76,91.659,2.74678921]
[1645966913563,16.3651,91.76,91.661,108.9]
[1645966913765,16.3651,91.76,91.662,3.21075818]
[1645966913968,16.3651,91.76,91.662,5.95754739]
[1645966914963,39.10728479,91.76,91.662,3.21075818]
[1645966915563,4.40569396,91.759,91.662,0.25]
[1645966915764,6.0,91.758,91.66,18.66068439]
[1645966915964,22.8691,91.757,91.66,18.66068439]
[1645966916366,4.361,91.756,91.66,18.66068439]
[1645966916564,7.10778921,91.756,91.66,16.3647]
[1645966916765,31.2948209,91.756,91.66,16.3647]
[1645966916965,4.22569851,91.755,91.66,16.3647]
[1645966917367,7.10778921,91.754,91.66,16.3647]
[1645966917567,108.9,91.753,91.642,4.361]
[1645966917767,108.9,91.751,91.64,32.9666]
[1645966917966,1.69629128,91.75,91.64,32.9666]
[1645966918166,4.361,91.749,91.64,32.9666]
[1645966918368,110.39303355,91.749,91.64,32.9666]
[1645966918573,4.37505603,91.748,91.64,32.9666]
[1645966918766,4.361,91.747,91.64,32.9666]
[1645966918970,22.8278,91.746,91.64,32.9666]
[1645966919169,6.2082451,91.745,91.64,32.9666]
[1645966919368,6.0,91.744,91.64,32.9666]
[1645966919768,8.74678921,91.744,91.642,108.9]
[1645966919969,2.74678921,91.743,91.643,3.10982484]
[1645966920369,6.0,91.744,91.657,108.9]
[1645966920569,6.0,91.744,91.658,2.88298194]
[1645966920969,22.8278,91.746,91.658,2.88298194]
[1645966921170,6.0,91.745,91.658,2.88298194]
[1645966921770,10.361,91.745,91.658,2.88298194]
[1645966923070,10.361,91.745,91.65,16.3665]
[1645966923270,2.74678921,91.744,91.642,2.68839031]
[1645966923470,4.362,91.743,91.642,2.68839031]
[1645966923971,2.74678921,91.742,91.642,2.68839031]
[1645966924173,4.362,91.741,91.643,2.91192959]
[1645966924371,2.74678921,91.742,91.64,16.5991]
[1645966924572,22.74218479,91.741,91.64,16.5991]
[1645966924771,1.62188749,91.74,91.64,16.5991]
[1645966924971,4.362,91.739,91.61,16.3727]
[1645966925173,99.9,91.738,91.61,16.3727]
[1645966925371,99.9,91.736,91.617,23.7824]
[1645966925572,99.9,91.734,91.617,23.7824]
[1645966925771,99.9,91.732,91.635,36.98326394]
[1645966925971,99.9,91.73,91.636,23.5912]
[1645966926172,99.9,91.728,91.636,23.5912]
[1645966926371,1.428886,91.727,91.636,23.5912]
[1645966926572,4.362,91.726,91.636,23.5912]
[1645966926874,6.0,91.725,91.59,16.3762]
[1645966927073,101.42353325,91.719,91.551,2.38095545]
[1645966927272,4.09,91.712,91.555,112.2]
[1645966927473,4.365,91.711,91.555,112.2]
[1645966927773,1.67871169,91.707,91.556,2.57398051]
[1645966927971,4.365,91.706,91.556,37.55939158]
[1645966928172,1.47704446,91.704,91.557,2.74678921]
[1645966928372,4.365,91.703,91.558,6.0]
[1645966928574,99.9,91.702,91.558,6.0]
[1645966928772,5.78139735,91.701,91.557,6.0]
[1645966928972,5.78139735,91.701,91.552,48.1063]
[1645966928973,4.09,91.691,91.552,48.1063]
[1645966929173,99.9,91.679,91.552,48.1063]
[1645966929376,1.39154412,91.676,91.536,15.9863]
[1645966929573,4.366,91.675,91.536,15.9863]
[1645966929774,99.9,91.674,91.536,15.9863]
[1645966930075,99.9,91.672,91.538,2.54510845]
[1645966930273,99.9,91.67,91.539,47.3264]
[1645966930474,5.77369697,91.669,91.539,47.3264]
[1645966930673,1.41179311,91.667,91.54,6.0]
[1645966930877,4.366,91.666,91.54,6.0]
[1645966931073,1.49163985,91.664,91.549,2.74678921]
[1645966931272,4.366,91.663,91.549,2.74678921]
[1645966931473,1.64180081,91.66,91.54,6.0]
[1645966931672,4.366,91.659,91.54,6.0]
[1645966931873,31.49951465,91.659,91.54,6.0]
[1645966932076,1.44027177,91.657,91.54,6.0]
[1645966932274,4.366,91.656,91.549,2.74678921]
[1645966932473,99.9,91.655,91.54,6.0]
[1645966932672,6.1421599,91.654,91.54,6.0]
[1645966932872,1.594631,91.652,91.54,6.0]
[1645966933072,4.367,91.651,91.54,6.0]
[1645966933272,108.9,91.65,91.539,47.3264]
[1645966933472,1.51190682,91.647,91.539,47.3264]
[1645966933872,7.11378921,91.646,91.539,47.3264]
[1645966934073,23.4219,91.645,91.539,47.3264]
[1645966934275,1.63663604,91.643,91.539,47.3264]
[1645966934475,16.3881,91.63,91.539,47.3264]
[1645966934874,16.3881,91.63,91.54,2.74678921]
[1645966935774,16.3881,91.63,91.54,5.62165766]
[1645966936275,1.42812735,91.629,91.54,2.74678921]
[1645966936476,23.0893,91.628,91.54,2.74678921]
[1645966937075,23.0893,91.628,91.539,47.3264]
[1645966937877,10.33341521,91.627,91.539,47.3264]
[1645966938076,16.3917,91.62,91.539,47.3264]
[1645966938276,16.3917,91.62,91.533,16.102]
[1645966938277,1.54042472,91.618,91.533,16.102]
[1645966938476,4.367,91.617,91.513,2.74678921]
[1645966938677,1.86141788,91.614,91.505,16.2292]
[1645966939275,1.86141788,91.614,91.506,38.36083407]
[1645966939476,1.86141788,91.614,91.506,35.11404486]
[1645966939878,1.86141788,91.614,91.507,23.011]
[1645966940378,1.86141788,91.614,91.51,16.3917]
[1645966940975,2.74678921,91.613,91.51,16.3917]
[1645966942879,6.0,91.612,91.511,2.39461688]
[1645966943477,6.0,91.611,91.512,22.6708]
[1645966943680,2.74678921,91.611,91.512,22.6708]
[1645966943878,10.368,91.61,91.512,22.6708]
[1645966944079,1.50532908,91.609,91.512,22.6708]
[1645966944277,4.25211829,91.609,91.512,22.6708]
[1645966944477,2.74678921,91.609,91.514,2.85382418]
[1645966944678,6.0,91.61,91.541,108.9]
[1645966944877,6.0,91.61,91.543,108.9]
[1645966945280,1.6465161,91.637,91.542,39.51753451]
[1645966945480,1.6465161,91.637,91.543,156.2887]
[1645966946179,1.6465161,91.637,91.543,47.3887]
[1645966946581,26.64388921,91.636,91.543,47.3887]
[1645966947382,23.8971,91.636,91.543,47.3887]
[1645966947585,16.3889,91.63,91.543,47.3887]
[1645966947782,1.66287923,91.629,91.543,47.3887]
[1645966948782,2.74678921,91.628,91.543,47.3887]
[1645966948983,6.0,91.627,91.543,47.3887]
[1645966949682,1.66287923,91.629,91.543,47.3887]
[1645966949884,6.0,91.628,91.543,47.3887]
[1645966951282,16.3913,91.62,91.543,47.3887]
[1645966951682,1.85450638,91.619,91.543,47.3887]
[1645966952083,1.85450638,91.619,91.51,16.3909]
[1645966952282,1.85450638,91.619,91.442,5.58]
[1645966952283,110.61536656,91.617,91.517,23.7745]
[1645966952484,108.9,91.615,91.517,23.7745]
[1645966952686,108.9,91.613,91.517,23.7745]
[1645966952884,1.71033962,91.612,91.517,23.7745]
[1645966953084,1.71033962,91.612,91.506,22.5137]
[1645966953384,4.368,91.611,91.506,22.5137]
[1645966953585,1.74697337,91.609,91.496,24.7859]
[1645966953786,4.368,91.608,91.496,24.7859]
[1645966953985,1.74697337,91.609,91.496,24.7859]
[1645966954185,1.74697337,91.609,91.495,45.66710961]
[1645966954186,2.74678921,91.607,91.495,45.66710961]
[1645966954386,110.3566622,91.605,91.495,45.66710961]
[1645966954586,108.9,91.603,91.495,45.66710961]
[1645966954786,108.9,91.601,91.495,45.66710961]
[1645966955086,108.9,91.589,91.495,45.66710961]
[1645966955288,1.38538142,91.588,91.495,45.66710961]
[1645966955686,2.74678921,91.587,91.495,45.66710961]
[1645966955887,2.74678921,91.587,91.496,23.9097]
[1645966956087,108.9,91.579,91.496,23.9097]
[1645966956286,1.69453263,91.578,91.496,23.9097]
[1645966956486,1.69453263,91.578,91.495,45.66710961]
[1645966957086,4.44132184,91.578,91.495,45.66710961]
[1645966957486,16.3979,91.58,91.495,45.66710961]
[1645966957688,25.86428921,91.589,91.496,111.35195324]
[1645966957889,23.1175,91.589,91.497,0.25]
[1645966958087,23.1175,91.589,91.497,2.98735296]
[1645966958487,23.1175,91.589,91.498,17.25624885]
[1645966958888,6.0,91.588,91.498,17.25624885]
[1645966960590,6.0,91.588,91.5,16.3932]
[1645966960791,6.0,91.588,91.499,2.74678921]
[1645966960792,23.5327,91.606,91.501,3.345603]
[1645966961088,23.5327,91.606,91.501,10.825603]
[1645966961492,23.5327,91.606,91.503,2.85330786]
[1645966961692,23.5327,91.606,91.504,0.25]
[1645966961890,23.5327,91.606,91.52,16.3897]
[1645966962090,23.5327,91.606,91.522,39.11036853]
[1645966962292,23.5327,91.606,91.523,3.10704754]
[1645966963196,23.5327,91.606,91.522,36.72605184]
[1645966963794,23.5327,91.606,91.523,2.27797901]
[1645966964395,6.0,91.605,91.523,2.27797901]
[1645966964597,108.9,91.604,91.522,36.72605184]
[1645966964796,4.368,91.603,91.522,36.72605184]
[1645966964995,16.3977,91.59,91.522,36.72605184]
[1645966965197,16.3977,91.59,91.499,24.8676]
[1645966965501,1.56150792,91.588,91.498,0.54624885]
[1645966965897,108.9,91.586,91.498,0.54624885]
[1645966966098,16.3985,91.58,91.498,0.54624885]
[1645966966299,1.78171551,91.579,91.498,0.54624885]
[1645966966598,1.63318142,91.578,91.498,0.54624885]
[1645966967003,4.369,91.577,91.498,0.54624885]
[1645966967197,108.9,91.576,91.498,0.54624885]
[1645966967398,108.9,91.574,91.498,0.54624885]
[1645966967597,1.70493092,91.573,91.498,0.54624885]
[1645966967799,113.269,91.572,91.498,0.54624885]
[1645966968000,1.42042796,91.571,91.498,0.54624885]
[1645966968199,4.369,91.57,91.498,0.54624885]
[1645966968400,1.73226177,91.569,91.498,0.54624885]
[1645966968600,113.269,91.568,91.498,0.54624885]
[1645966968800,1.85725845,91.567,91.498,0.54624885]
[1645966969001,113.27,91.566,91.498,0.54624885]
[1645966969204,1.6888374,91.565,91.498,0.54624885]
[1645966969405,4.37,91.564,91.498,0.54624885]
[1645966969602,1.55874296,91.563,91.498,0.54624885]
[1645966969804,113.27,91.562,91.498,0.54624885]
[1645966970002,134.97648593,91.562,91.498,0.54624885]
[1645966970203,108.9,91.549,91.498,0.54624885]
[1645966970403,114.99713632,91.548,91.498,0.54624885]
[1645966970629,1.65841388,91.547,91.498,0.54624885]
[1645966970806,4.37,91.546,91.498,0.54624885]
[1645966971306,4.40520309,91.547,91.498,0.54624885]
[1645966971507,4.37,91.546,91.498,0.54624885]
[1645966971905,2.74678921,91.557,91.498,0.54624885]
[1645966972507,24.2505,91.566,91.498,0.54624885]
[1645966973109,16.4002,91.58,91.498,0.54624885]
[1645966973306,4.369,91.579,91.498,0.54624885]
[1645966973708,16.4002,91.58,91.498,0.54624885]
[1645966974810,6.0,91.579,91.498,0.54624885]
[1645966975409,24.1397,91.589,91.498,0.54624885]
[1645966976010,1.74974383,91.6,91.498,109.44624885]
[1645966976209,24.3131,91.604,91.501,108.9]
[1645966976409,24.3131,91.604,91.502,0.25]
[1645966976612,24.3131,91.604,91.501,3.08702735]
[1645966976809,24.3131,91.604,91.503,2.98730832]
[1645966977012,24.3131,91.604,91.504,0.25]
[1645966977209,136.02484798,91.603,91.503,2.98730832]
[1645966977409,16.3956,91.59,91.503,2.98730832]
[1645966978137,19.14238921,91.59,91.503,2.98730832]
[1645966978310,19.14238921,91.59,91.502,23.2208]
[1645966978510,5.79510968,91.589,91.502,23.2208]
[1645966979009,7.39696872,91.588,91.502,23.2208]
[1645966979209,6.11066338,91.587,91.502,23.2208]
[1645966979810,2.74678921,91.587,91.502,23.2208]
[1645966982213,2.74678921,91.597,91.503,114.38871859]
[1645966982415,1.66402216,91.647,91.511,108.9]
[1645966982614,1.66402216,91.647,91.513,37.00244312]
[1645966982813,1.66402216,91.647,91.515,111.60012924]
[1645966983014,4.367,91.646,91.518,2.88496376]
[1645966983223,1.66303918,91.644,91.514,27.23888921]
[1645966983415,4.367,91.643,91.514,24.4921]
[1645966983615,4.367,91.643,91.515,2.31887906]
[1645966983816,108.9,91.642,91.515,2.31887906]
[1645966984015,1.86754652,91.641,91.515,2.31887906]
[1645966984214,4.367,91.64,91.515,2.31887906]
[1645966984420,108.9,91.639,91.515,2.31887906]
[1645966984620,108.9,91.637,91.514,24.4921]
[1645966984817,108.9,91.635,91.514,24.4921]
[1645966985017,108.9,91.633,91.514,24.4921]
[1645966985216,1.78888346,91.63,91.514,24.4921]
[1645966985425,4.368,91.629,91.514,24.4921]
[1645966985641,1.65619863,91.628,91.514,24.4921]
[1645966985845,1.65619863,91.628,91.515,2.45387999]
[1645966986043,1.65619863,91.628,91.514,24.4921]
[1645966986044,108.9,91.626,91.514,24.4921]
[1645966986241,108.9,91.624,91.514,24.4921]
[1645966986442,4.368,91.623,91.514,24.4921]
[1645966986644,108.9,91.622,91.514,24.4921]
[1645966986843,108.9,91.62,91.514,24.4921]
[1645966987045,108.9,91.618,91.514,24.4921]
[1645966987246,108.9,91.616,91.514,24.4921]
[1645966987443,108.9,91.614,91.514,24.4921]
[1645966987643,6.09314254,91.615,91.514,24.4921]
[1645966987644,108.9,91.612,91.514,24.4921]
[1645966987945,108.9,91.61,91.514,24.4921]
[1645966988144,108.9,91.608,91.514,24.4921]
[1645966988345,6.16144922,91.607,91.514,24.4921]
[1645966988546,108.9,91.606,91.503,2.94296324]
[1645966988746,108.9,91.604,91.498,0.54624885]
[1645966988945,108.9,91.589,91.498,0.54624885]
[1645966989144,4.369,91.588,91.498,0.54624885]